fUSD/lending_fUSD_20250804
["ID","MTS","AMOUNT","RATE_DAILY","PERIOD"]
[377198031,1754286646501,-5798.19178837,0.00047999,120]
[377198033,1754286646510,-300.0,0.00047999,120]
[377198035,1754286646520,-6012.72488454,0.00047999,120]
[377198036,1754286646530,-151.0,0.00047999,120]
[377198039,1754286646540,-5524.65075813,0.00047999,120]
[377198040,1754286646550,-300.0,0.00047999,120]
[377198041,1754286646559,-280.91920154,0.00047999,120]
[377198042,1754286646569,-300.0,0.00047999,120]
[377198043,1754286646578,-500.0,0.00047999,120]
[377198044,1754286646588,-300.0,0.00047999,120]
[377198045,1754286646599,-500.0,0.00047999,120]
[377198046,1754286646608,-300.0,0.00047999,120]
[377198047,1754286646617,-600.0,0.00047999,120]
[377198048,1754286646626,-500.0,0.00047999,120]
[377198050,1754286646636,-300.0,0.00047999,120]
[377198052,1754286646646,-600.0,0.00047999,120]
[377198054,1754286646655,-500.0,0.00047999,120]
[377198056,1754286646664,-224.74770299,0.00047999,120]
[377198058,1754286646674,-600.0,0.00047999,120]
[377198060,1754286646683,-500.0,0.00047999,120]
[377198062,1754286646692,-600.0,0.00047999,120]
[377198064,1754286646701,-500.0,0.00047999,120]
[377198066,1754286646711,-430.47889915,0.00047999,120]
[377198067,1754286646720,-500.0,0.00047999,120]
[377198068,1754286646729,-500.0,0.00047999,120]
[377198069,1754286646739,-500.0,0.00047999,120]
[377198070,1754286646748,-500.0,0.00047999,120]
[377198071,1754286646758,-500.0,0.00047999,120]
[377198072,1754286646767,-500.0,0.00047999,120]
[377198073,1754286646777,-500.0,0.00047999,120]
[377198074,1754286646787,-500.0,0.00047999,120]
[377198075,1754286646797,-500.0,0.00047999,120]
[377198076,1754286646806,-500.0,0.00047999,120]
[377198077,1754286646816,-301.35188096,0.00047999,120]
[377198078,1754286646825,-500.0,0.00047999,120]
[377198079,1754286646834,-500.0,0.00047999,120]
[377198080,1754286646844,-500.0,0.00047999,120]
[377198081,1754286646853,-500.0,0.00047999,120]
[377198082,1754286646863,-500.0,0.00047999,120]
[377198083,1754286646873,-151.63335307,0.00047999,120]
[377198084,1754286646883,-500.0,0.00047999,120]
[377198085,1754286646894,-500.0,0.00047999,120]
[377198086,1754286646904,-500.0,0.00047999,120]
[377198087,1754286646913,-500.0,0.00047999,120]
[377198088,1754286646923,-500.0,0.00047999,120]
[377198089,1754286646933,-500.0,0.00047999,120]
[377198090,1754286646942,-500.0,0.00047999,120]
[377198091,1754286646951,-500.0,0.00047999,120]
[377198092,1754286646961,-500.0,0.00047999,120]
[377198093,1754286646970,-500.0,0.00047999,120]
[377198094,1754286646980,-150.0,0.00047999,120]
[377198095,1754286646990,-300.0,0.00047999,120]
[377198096,1754286647000,-157.28520502,0.00047999,120]
[377198097,1754286647009,-311.1,0.00047999,120]
[377198098,1754286647019,-500.0,0.00047999,120]
[377198099,1754286647029,-322.6107,0.00047999,120]
[377198100,1754286647039,-500.0,0.00047999,120]
[377198101,1754286647048,-334.5472959,0.00047999,120]
[377198102,1754286647059,-500.0,0.00047999,120]
[377198103,1754286647070,-350.65405922,0.00047999,120]
[377198104,1754286647080,-500.0,0.00047999,120]
[377198105,1754286647089,-500.0,0.00047999,120]
[377198106,1754286647099,-151.0,0.00047999,120]
[377198107,1754286647108,-500.0,0.00047999,120]
[377198108,1754286647118,-180.37945049,0.00047999,120]
[377198109,1754286647128,-500.0,0.00047999,120]
[377198110,1754286647137,-151.0,0.00047999,120]
[377198111,1754286647147,-500.0,0.00047999,120]
[377198112,1754286647157,-151.0,0.00047999,120]
[377198113,1754286647168,-151.0,0.00047999,120]
[377198114,1754286647178,-500.0,0.00047999,120]
[377198115,1754286647187,-151.0,0.00047999,120]
[377198116,1754286647197,-500.0,0.00047999,120]
[377198117,1754286647206,-151.0,0.00047999,120]
[377198118,1754286647216,-500.0,0.00047999,120]
[377198119,1754286647226,-500.0,0.00047999,120]
[377198120,1754286647236,-151.0,0.00047999,120]
[377198121,1754286647245,-500.0,0.00047999,120]
[377198122,1754286647255,-151.0,0.00047999,120]
[377198123,1754286647264,-500.0,0.00047999,120]
[377198124,1754286647274,-151.0,0.00047999,120]
[377198125,1754286647283,-500.0,0.00047999,120]
[377198126,1754286647293,-151.0,0.00047999,120]
[377198127,1754286647302,-151.0,0.00047999,120]
[377198128,1754286647312,-151.0,0.00047999,120]
[377198129,1754286647322,-151.0,0.00047999,120]
[377198130,1754286647331,-151.0,0.00047999,120]
[377198131,1754286647340,-151.0,0.00047999,120]
[377198132,1754286647350,-151.0,0.00047999,120]
[377198133,1754286647359,-151.0,0.00047999,120]
[377198134,1754286647369,-500.0,0.00047999,120]
[377198135,1754286647378,-151.0,0.00047999,120]
[377198136,1754286647388,-500.0,0.00047999,120]
[377198137,1754286647398,-151.0,0.00047999,120]
[377198138,1754286647408,-500.0,0.00047999,120]
[377198139,1754286647417,-151.0,0.00047999,120]
[377198140,1754286647427,-500.0,0.00047999,120]
[377198141,1754286647436,-500.0,0.00047999,120]
[377198142,1754286647446,-500.0,0.00047999,120]
[377198143,1754286647456,-500.0,0.00047999,120]
[377198144,1754286647465,-500.0,0.00047999,120]
[377198145,1754286647476,-500.0,0.00047999,120]
[377198146,1754286647485,-500.0,0.00047999,120]
[377198147,1754286647494,-500.0,0.00047999,120]
[377198148,1754286647504,-150.0,0.00047999,7]
[377198149,1754286647514,-172.25933334,0.00048,120]
[377198150,1754286647523,-180703.03825716,0.00048,31]
[377198151,1754286647533,-9090.99246643,0.00048,61]
[377198152,1754286647544,-1186672.4021372,0.00048,120]
[377198154,1754286648295,-5071.54527591,0.00048,120]
[377198190,1754286648777,-150.0,0.00029397,3]
[377198191,1754286648787,-300.0,0.00031637,3]
[377198192,1754286648798,-152.3267422,0.00047678,15]
[377198193,1754286648808,-13466.2827121,0.00048,120]
[377198194,1754286649020,-630.21210057,0.00048,120]
[377198195,1754286649078,-1395.22337229,0.00048,120]
[377198196,1754286649211,-262.9,0.00048,120]
[377198197,1754286649224,-821.6,0.00048,120]
[377198198,1754286649236,-764.62776292,0.00048,120]
[377198199,1754286649248,-251.56770904,0.00048,120]
[377198411,1754287222845,-150.0,0.00027397,2]
[377198414,1754287428893,154.52,0.00013699,2]
[377198420,1754287683487,300.0,0.00029534,120]
[377198422,1754287712932,500.0,0.0003,120]
[377198451,1754287831442,-282.334,0.00026849,2]
[377198452,1754287831452,-127.85368663,0.00027397,2]
[377198453,1754287831502,-165.5827269,0.00027397,2]
[377198454,1754287831512,-250.0,0.00029534,2]
[377198455,1754287831521,-62.99747161,0.00031293,2]
[377198456,1754287831533,-166.50252839,0.00031293,2]
[377198457,1754287831543,-153.0,0.00031293,2]
[377198458,1754287831553,-153.71,0.00035908,2]
[377198459,1754287831563,-154.52,0.00038356,2]
[377198460,1754287831573,-153.71,0.00039499,2]
[377198461,1754287831582,-240.62,0.00039595,2]
[377198462,1754287831593,-2333.386503,0.00040912,2]
[377198463,1754287831603,-240.62,0.00041325,120]
[377198464,1754287831612,-152.0,0.00041603,3]
[377198465,1754287831622,-123.24845429,0.00041901,5]
[377198466,1754287831691,-1796.75154571,0.00041901,5]
[377198467,1754287831701,-150.99,0.00041902,2]
[377198468,1754287831710,-4398.32936607,0.00041902,2]
[377198469,1754287831722,-783.48542343,0.00041902,2]
[377198470,1754287831733,-2116.47761691,0.00041902,2]
[377198471,1754287831745,-2701.69759359,0.00041902,2]
[377198472,1754287831754,-150.99,0.00041902,30]
[377198473,1754287831763,-240.62,0.00043055,120]
[377198474,1754287831772,-153.71,0.0004309,30]
[377198475,1754287831782,-666.0,0.00044213,3]
[377198476,1754287831791,-514.0,0.00044232,10]
[377198477,1754287831800,-186.57,0.00044267,2]
[377198478,1754287831810,-75.50480445,0.00044324,2]
[377198479,1754287831829,-1520.64519555,0.00044324,2]
[377198480,1754287831839,-250.0,0.00044423,120]
[377198482,1754287831849,-200.0,0.00044457,2]
[377198484,1754287831859,-348.81,0.0004447,2]
[377198486,1754287831869,-88.08266619,0.00044514,2]
[377198488,1754287831880,-111.91733381,0.00044514,2]
[377198490,1754287831890,-5256.13716664,0.00044751,2]
[377198492,1754287831901,-784.71721396,0.00044751,2]
[377198495,1754287831917,-17859.1456194,0.00044751,2]
[377198497,1754287831926,-240.62,0.00044786,120]
[377198499,1754287831935,-176.653,0.0004484,2]
[377198501,1754287831945,-1251.0,0.0004484,2]
[377198503,1754287831955,-568.64,0.0004484,2]
[377198505,1754287831964,-2039.927,0.0004484,2]
[377198507,1754287831973,-601.59,0.0004484,2]
[377198509,1754287831982,-1305.688,0.0004484,2]
[377198511,1754287831992,-1708.224,0.0004484,2]
[377198513,1754287832002,-5791.15808285,0.0004484,2]
[377198515,1754287832014,-278.84191715,0.0004484,2]
[377198517,1754287832024,-284.72,0.00044999,2]
[377198519,1754287832033,-1045.0,0.00045,120]
[377198521,1754287832042,-1163.0,0.000453,7]
[377198523,1754287832051,-175.0,0.00045452,7]
[377198525,1754287832061,-151.0,0.00045469,2]
[377198528,1754287832072,-151.0,0.00045469,2]
[377198530,1754287832081,-151.0,0.00045469,2]
[377198533,1754287832091,-151.0,0.00045469,2]
[377198536,1754287832104,-151.0,0.00045469,2]
[377198539,1754287832116,-151.0,0.00045469,2]
[377198542,1754287832125,-151.0,0.00045469,2]
[377198544,1754287832134,-151.0,0.00045469,2]
[377198546,1754287832145,-151.0,0.00045469,2]
[377198549,1754287832154,-151.0,0.00045469,2]
[377198552,1754287832164,-151.0,0.00045469,2]
[377198554,1754287832174,-151.0,0.00045469,2]
[377198556,1754287832184,-151.0,0.00045469,2]
[377198559,1754287832194,-151.0,0.00045469,2]
[377198562,1754287832203,-38.09858171,0.00045469,2]
[377198566,1754287832214,-112.90141829,0.00045469,2]
[377198568,1754287832223,-151.0,0.00045469,2]
[377198571,1754287832233,-151.0,0.00045469,2]
[377198574,1754287832242,-151.0,0.00045469,2]
[377198576,1754287832253,-151.0,0.00045469,2]
[377198578,1754287832262,-96.02778171,0.00045469,2]
[377198580,1754287832277,-54.97221829,0.00045469,2]
[377198582,1754287832287,-291.99826784,0.00045496,2]
[377198585,1754287832297,-177.31,0.00046,61]
[377198588,1754287832306,-500.0,0.00046,120]
[377198591,1754287832315,-2175.71951387,0.00046,14]
[377198595,1754287832327,-999.71745748,0.00046,14]
[377198598,1754287832338,-2038.21523196,0.00046,14]
[377198602,1754287832357,-370.63653507,0.00046,14]
[377198604,1754287832368,-500.0,0.00046,14]
[377198606,1754287832379,-1459.41560526,0.00046,14]
[377198608,1754287832390,-480.41300194,0.00046,14]
[377198610,1754287832402,-2716.20265442,0.00046,14]
[377198612,1754287832412,-430.83212705,0.00046079,120]
[377198614,1754287832421,-280.0,0.00046091,60]
[377198616,1754287832430,-553.0,0.000461,2]
[377198618,1754287832440,-167.1,0.00046148,2]
[377198620,1754287832449,-406.45,0.00046161,2]
[377198622,1754287832458,-174.36,0.00046177,2]
[377198624,1754287832468,-514.0,0.00046203,10]
[377198625,1754287832478,-236.921,0.00046267,76]
[377198627,1754287832487,-1000.0,0.00046267,2]
[377198628,1754287832496,-1636.42,0.00046438,30]
[377198629,1754287832506,-152.3267422,0.00046475,15]
[377198630,1754287832515,-240.62,0.00046516,120]
[377198631,1754287832525,-150.0,0.0004656,2]
[377198632,1754287832535,-500.0,0.00046574,2]
[377198633,1754287832544,-500.0,0.00046574,31]
[377198634,1754287832553,-334.83538549,0.00046574,120]
[377198635,1754287832562,-72.11057837,0.00046574,120]
[377198636,1754287832574,-292.90840184,0.00046574,120]
[377198637,1754287832584,-501.95219402,0.00046574,7]
[377198638,1754287832595,-500.0,0.00046574,120]
[377198639,1754287832604,-503.57763178,0.00046574,2]
[377198640,1754287832613,-104.67748658,0.00046574,7]
[377198641,1754287832624,-395.32251342,0.00046574,7]
[377198642,1754287832634,-298.38864207,0.00046574,120]
[377198643,1754287832644,-502.91939685,0.00046574,7]
[377198644,1754287832653,-500.0,0.00046574,120]
[377198645,1754287832665,-500.0,0.00046574,120]
[377198646,1754287832674,-264.62647715,0.00046574,120]
[377198647,1754287832684,-1069.49,0.00046575,120]
[377198648,1754287832693,-1124.8261328,0.00046575,120]
[377198672,1754287837469,-1724.5938672,0.00046575,120]
[377198673,1754287837479,-400.0,0.00046575,120]
[377198674,1754287837489,-400.0,0.00046575,120]
[377198675,1754287837498,-919.63,0.00046575,120]
[377198676,1754287837508,-1093.2,0.00046575,120]
[377198677,1754287837517,-400.0,0.00046575,120]
[377198678,1754287837527,-400.0,0.00046575,120]
[377198679,1754287837536,-400.0,0.00046575,120]
[377198680,1754287837549,-400.0,0.00046575,120]
[377198681,1754287837558,-400.0,0.00046575,120]
[377198682,1754287837567,-1007.55,0.00046575,120]
[377198683,1754287837576,-1188.93,0.00046575,120]
[377198684,1754287837586,-400.0,0.00046575,120]
[377198685,1754287837595,-400.0,0.00046575,120]
[377198686,1754287837606,-400.0,0.00046575,120]
[377198687,1754287837616,-400.0,0.00046575,120]
[377198688,1754287837625,-400.0,0.00046575,120]
[377198689,1754287837635,-400.0,0.00046575,120]
[377198690,1754287837644,-1568.41,0.00046575,120]
[377198691,1754287837654,-464.08275379,0.00046575,120]
[377198692,1754287837664,-400.0,0.00046575,120]
[377198693,1754287837683,-1134.98,0.00046575,120]
[377198694,1754287837693,-1070.8,0.00046575,120]
[377198695,1754287837703,-400.0,0.00046575,120]
[377198696,1754287837712,-400.0,0.00046575,120]
[377198697,1754287837722,-587.80179915,0.00046575,120]
[377198704,1754287837875,-1172.06820085,0.00046575,120]
[377198705,1754287837884,-400.0,0.00046575,120]
[377198706,1754287837893,-400.0,0.00046575,120]
[377198707,1754287837903,-1418.92,0.00046575,120]
[377198708,1754287837912,-1397.69,0.00046575,120]
[377198709,1754287837921,-400.0,0.00046575,120]
[377198710,1754287837930,-1100.4,0.00046575,120]
[377198711,1754287837939,-400.0,0.00046575,120]
[377198713,1754287837949,-400.0,0.00046575,120]
[377198715,1754287837959,-400.0,0.00046575,120]
[377198717,1754287837968,-688.74,0.00046575,120]
[377198720,1754287837977,-836.83,0.00046575,120]
[377198723,1754287837986,-400.0,0.00046575,120]
[377198725,1754287837995,-1054.97,0.00046575,120]
[377198727,1754287838006,-500.0,0.00046575,120]
[377198729,1754287838015,-1620.24,0.00046575,120]
[377198731,1754287838025,-241.66255308,0.00046575,120]
[377198733,1754287838034,-400.0,0.00046575,120]
[377198736,1754287838044,-400.0,0.00046575,120]
[377198738,1754287838053,-400.0,0.00046575,120]
[377198740,1754287838062,-400.0,0.00046575,120]
[377198742,1754287838072,-957.27,0.00046575,120]
[377198744,1754287838082,-400.0,0.00046575,120]
[377198747,1754287838092,-400.0,0.00046575,120]
[377198748,1754287838107,-1210.5,0.00046575,120]
[377198750,1754287838116,-400.0,0.00046575,120]
[377198751,1754287838125,-402.30096157,0.00046575,120]
[377198753,1754287838135,-872.83,0.00046575,120]
[377198755,1754287838146,-400.0,0.00046575,120]
[377198756,1754287838155,-635.79,0.00046575,120]
[377198758,1754287838164,-878.03,0.00046575,120]
[377198760,1754287838174,-400.0,0.00046575,120]
[377198761,1754287838183,-400.0,0.00046575,120]
[377198763,1754287838192,-464.69833816,0.00046575,120]
[377198764,1754287838201,-400.0,0.00046575,120]
[377198766,1754287838210,-707.5,0.00046575,60]
[377198768,1754287838219,-400.0,0.00046575,120]
[377198769,1754287838228,-400.0,0.00046575,120]
[377198771,1754287838237,-400.0,0.00046575,120]
[377198773,1754287838247,-400.0,0.00046575,120]
[377198774,1754287838256,-728.4,0.00046575,120]
[377198776,1754287838265,-400.0,0.00046575,120]
[377198778,1754287838274,-836.94,0.00046575,120]
[377198779,1754287838283,-573.95,0.00046575,120]
[377198781,1754287838293,-486.52,0.00046575,120]
[377198783,1754287838302,-400.0,0.00046575,120]
[377198784,1754287838311,-982.98,0.00046575,120]
[377198786,1754287838320,-1529.78,0.00046575,120]
[377198788,1754287838329,-400.0,0.00046575,120]
[377198789,1754287838338,-400.98584658,0.00046575,120]
[377198791,1754287838348,-400.0,0.00046575,120]
[377198793,1754287838358,-400.0,0.00046575,120]
[377198794,1754287838367,-400.0,0.00046575,120]
[377198796,1754287838376,-789.47,0.00046575,120]
[377198797,1754287838388,-1002.76,0.00046575,120]
[377198799,1754287838398,-400.0,0.00046575,120]
[377198801,1754287838407,-401.26880876,0.00046575,120]
[377198803,1754287838417,-514.12,0.00046575,120]
[377198805,1754287838426,-440.14,0.00046575,30]
[377198806,1754287838436,-568.69,0.00046575,120]
[377198808,1754287838445,-527.17,0.00046575,120]
[377198810,1754287838455,-400.0,0.00046575,120]
[377198811,1754287838464,-400.0,0.00046575,120]
[377198813,1754287838473,-400.0,0.00046575,120]
[377198815,1754287838482,-670.65,0.00046575,120]
[377198817,1754287838492,-476.51,0.00046575,120]
[377198818,1754287838501,-400.0,0.00046575,120]
[377198820,1754287838510,-1771.12,0.00046575,120]
[377198822,1754287838520,-400.0,0.00046575,120]
[377198824,1754287838529,-400.0,0.00046575,120]
[377198825,1754287838538,-1465.93,0.00046575,120]
[377198827,1754287838548,-1339.47,0.00046575,120]
[377198830,1754287838558,-400.0,0.00046575,120]
[377198832,1754287838567,-400.0,0.00046575,120]
[377198833,1754287838576,-400.0,0.00046575,120]
[377198835,1754287838586,-400.0,0.00046575,120]
[377198837,1754287838595,-462.89197424,0.00046575,120]
[377198839,1754287838605,-400.0,0.00046575,120]
[377198840,1754287838614,-400.0,0.00046575,120]
[377198842,1754287838623,-1302.25,0.00046575,120]
[377198844,1754287838633,-701.38,0.00046575,120]
[377198846,1754287838642,-1390.37,0.00046575,120]
[377198848,1754287838651,-400.0,0.00046575,120]
[377198849,1754287838661,-400.0,0.00046575,120]
[377198851,1754287838671,-1295.05,0.00046575,120]
[377198853,1754287838680,-400.0,0.00046575,120]
[377198855,1754287838690,-839.55,0.00046575,120]
[377198856,1754287838699,-400.0,0.00046575,120]
[377198858,1754287838708,-400.0,0.00046575,120]
[377198860,1754287838718,-400.0,0.00046575,120]
[377198862,1754287838727,-1237.55,0.00046575,120]
[377198864,1754287838737,-442.55616448,0.00046575,120]
[377198865,1754287838746,-400.0,0.00046575,120]
[377198867,1754287838755,-823.49,0.00046575,120]
[377198869,1754287838765,-459.11,0.00046575,120]
[377198870,1754287838775,-713.48,0.00046575,120]
[377198871,1754287838784,-66.93124845,0.00046575,120]
[377198873,1754287838798,-333.06875155,0.00046575,120]
[377198874,1754287838807,-400.0,0.00046575,120]
[377198876,1754287838817,-442.53014506,0.00046575,120]
[377198896,1754287839670,-477.78379006,0.0004484,2]
[377198935,1754287843142,-3659.21620994,0.0004484,2]
[377198936,1754287843152,-86.97256112,0.00046575,120]
[377198937,1754287843164,-400.0,0.00046575,120]
[377198938,1754287843175,-400.0,0.00046575,120]
[377198939,1754287843185,-400.0,0.00046575,120]
[377198940,1754287843199,-637.24,0.00046575,120]
[377198941,1754287843210,-400.0,0.00046575,120]
[377198942,1754287843221,-400.0,0.00046575,120]
[377198943,1754287843233,-684.98683084,0.00046575,120]
[377198944,1754287843359,-500.0,0.00036202,2]
[377198945,1754287843369,-13.30316916,0.00046575,120]
[377198946,1754287843378,-92.40495349,0.00046575,120]
[377198947,1754287843390,-1089.43504651,0.00046575,120]
[377198948,1754287843400,-485.24173468,0.00046575,120]
[377198949,1754287843410,-400.0,0.00046575,120]
[377198950,1754287843420,-400.0,0.00046575,120]
[377198951,1754287843430,-400.0,0.00046575,120]
[377198952,1754287843440,-400.0,0.00046575,120]
[377198953,1754287843449,-374.46586022,0.00046575,120]
[377198954,1754287843464,-25.53413978,0.00046575,120]
[377198955,1754287843475,-470.13,0.00046575,120]
[377198956,1754287843485,-400.87678315,0.00046575,120]
[377198957,1754287843496,-994.44,0.00046575,120]
[377198958,1754287843506,-400.0,0.00046575,120]
[377198959,1754287843515,-400.0,0.00046575,120]
[377198960,1754287843525,-400.0,0.00046575,120]
[377198961,1754287843534,-1026.44,0.00046575,120]
[377198962,1754287843544,-400.0,0.00046575,120]
[377198963,1754287843552,-175.60744388,0.00046575,120]
[377198964,1754287843563,-224.39255612,0.00046575,120]
[377198965,1754287843573,-1377.6,0.00046575,120]
[377198966,1754287843582,-976.3,0.00046575,120]
[377198967,1754287843593,-400.0,0.00046575,120]
[377198968,1754287843602,-400.0,0.00046575,120]
[377198969,1754287843611,-608.44573879,0.00046575,30]
[377198970,1754287843621,-400.0,0.00046575,120]
[377198971,1754287843630,-618.67,0.00046575,120]
[377198972,1754287843641,-400.0,0.00046575,120]
[377198973,1754287843650,-650.33,0.00046575,120]
[377198974,1754287843660,-844.07,0.00046575,120]
[377198975,1754287843669,-400.0,0.00046575,120]
[377198977,1754287843679,-400.0,0.00046575,120]
[377198978,1754287843688,-1292.3,0.00046575,120]
[377198979,1754287843698,-400.0,0.00046575,120]
[377198980,1754287843707,-400.0,0.00046575,120]
[377198981,1754287843716,-400.0,0.00046575,120]
[377198982,1754287843726,-400.0,0.00046575,120]
[377198983,1754287843735,-713.74,0.00046575,120]
[377198984,1754287843744,-835.31,0.00046575,120]
[377198985,1754287843753,-741.79,0.00046575,120]
[377198986,1754287843763,-400.0,0.00046575,120]
[377198987,1754287843771,-652.93,0.00046575,120]
[377198988,1754287843781,-756.87,0.00046575,120]
[377198989,1754287843790,-400.0,0.00046575,120]
[377198990,1754287843800,-400.0,0.00046575,120]
[377198991,1754287843809,-400.65700762,0.00046575,120]
[377198992,1754287843818,-400.0,0.00046575,120]
[377198993,1754287843828,-1388.83,0.00046575,120]
[377198994,1754287843839,-580.68,0.00046575,120]
[377198995,1754287843850,-400.0,0.00046575,120]
[377198996,1754287843859,-400.0,0.00046575,120]
[377198997,1754287843869,-400.0,0.00046575,120]
[377198998,1754287843878,-400.0,0.00046575,120]
[377198999,1754287843888,-400.0,0.00046575,120]
[377199000,1754287843906,-400.0,0.00046575,120]
[377199001,1754287843929,-868.07,0.00046575,120]
[377199002,1754287843939,-602.0,0.00046575,120]
[377199003,1754287843949,-400.0,0.00046575,120]
[377199004,1754287843959,-400.0,0.00046575,120]
[377199006,1754287843969,-1321.55,0.00046575,120]
[377199007,1754287843979,-400.0,0.00046575,120]
[377199009,1754287843988,-400.0,0.00046575,120]
[377199011,1754287843998,-400.0,0.00046575,120]
[377199012,1754287844007,-400.0,0.00046575,120]
[377199013,1754287844016,-561.62,0.00046575,120]
[377199014,1754287844025,-400.0,0.00046575,120]
[377199015,1754287844035,-611.91,0.00046575,120]
[377199016,1754287844044,-486.8,0.00046575,120]
[377199017,1754287844054,-485.48,0.00046575,120]
[377199018,1754287844064,-400.0,0.00046575,120]
[377199019,1754287844073,-1012.69,0.00046575,120]
[377199020,1754287844083,-400.0,0.00046575,120]
[377199021,1754287844092,-400.0,0.00046575,120]
[377199022,1754287844103,-801.72,0.00046575,120]
[377199023,1754287844114,-745.86,0.00046575,120]
[377199024,1754287844125,-400.0,0.00046575,120]
[377199025,1754287844135,-724.93,0.00046575,120]
[377199026,1754287844144,-479.2,0.00046575,120]
[377199027,1754287844155,-1269.89,0.00046575,120]
[377199028,1754287844164,-400.0,0.00046575,120]
[377199029,1754287844174,-469.95,0.00046575,120]
[377199030,1754287844184,-714.42,0.00046575,120]
[377199031,1754287844194,-400.0,0.00046575,120]
[377199032,1754287844204,-701.23,0.00046575,120]
[377199033,1754287844214,-400.0,0.00046575,120]
[377199034,1754287844223,-511.11,0.00046575,120]
[377199035,1754287844233,-400.0,0.00046575,120]
[377199036,1754287844242,-400.0,0.00046575,120]
[377199037,1754287844252,-533.55,0.00046575,120]
[377199038,1754287844262,-1021.04,0.00046575,120]
[377199039,1754287844272,-402.4,0.00046575,120]
[377199040,1754287844281,-3053.03,0.00046575,120]
[377199041,1754287844291,-400.0,0.00046575,120]
[377199042,1754287844300,-400.0,0.00046575,120]
[377199043,1754287844309,-400.0,0.00046575,120]
[377199044,1754287844319,-611.42,0.00046575,120]
[377199045,1754287844328,-530.03,0.00046575,120]
[377199046,1754287844337,-2908.33,0.00046575,120]
[377199047,1754287844347,-284.13425239,0.00046575,120]
[377199048,1754287844357,-915.6,0.00046575,120]
[377199049,1754287844366,-1106.12,0.00046575,120]
[377199050,1754287844376,-400.0,0.00046575,120]
[377199051,1754287844386,-781.73,0.00046575,120]
[377199052,1754287844395,-207.07572127,0.0004658,120]
[377199053,1754287844405,-152.3267422,0.00046679,15]
[377199054,1754287844414,-167.21,0.00046681,120]
[377199055,1754287844424,-153.71,0.00046681,120]
[377199056,1754287844433,-532.45205916,0.00046719,2]
[377199057,1754287844442,-400.0,0.00046748,120]
[377199058,1754287844452,-976.16,0.00046748,120]
[377199059,1754287844461,-780.45,0.00046748,120]
[377199060,1754287844471,-517.56378651,0.00046749,15]
[377199061,1754287844480,-2601.24769758,0.00046749,18]
[377199062,1754287844490,-161.82341434,0.00046749,15]
[377199063,1754287844499,-2500.0,0.00046749,2]
[377199064,1754287844510,-1000.0,0.00046749,2]
[377199065,1754287844519,-20038.4841,0.00046749,120]
[377199066,1754287844529,-2000.0,0.0004677,120]
[377199067,1754287844539,-400.0,0.00046838,120]
[377199068,1754287844548,-758.46,0.00046838,120]
[377199069,1754287844558,-400.18070503,0.00046838,2]
[377199070,1754287844567,-400.0,0.00046838,2]
[377199071,1754287844577,-400.0,0.00046838,120]
[377199072,1754287844586,-196.87726609,0.00046838,2]
[377199073,1754287844598,-400.0,0.00046838,2]